[Event "*** Titled Tuesday Blitz"]
[Site "Chess.com"]
[Date "2019.06.04"]
[Round "6"]
[White "Barcelona_Guy"]
[Black "SaraciNderim"]
[Result "0-1"]
[WhiteElo "2685"]
[BlackElo "2866"]
[TimeControl "180+2"]
[EndTime "14:16:58 PDT"]
[Termination "SaraciNderim won by resignation"]

1. d4 {[%clk 0:03:01.9]} 1... Nf6 {[%clk 0:03:00]} 2. c4 {[%clk 0:03:02.3]} 2...
e6 {[%clk 0:03:01.1]} 3. Nf3 {[%clk 0:03:00.9]} 3... d5 {[%clk 0:03:02.3]} 4.
Nc3 {[%clk 0:02:59.6]} 4... Be7 {[%clk 0:03:02.6]} 5. Bf4 {[%clk 0:02:59.6]}
5... O-O {[%clk 0:03:03.6]} 6. e3 {[%clk 0:03:01.2]} 6... dxc4 {[%clk
0:03:01.1]} 7. Bxc4 {[%clk 0:03:01.8]} 7... c5 {[%clk 0:03:02.4]} 8. O-O {[%clk
0:02:54.5]} 8... Nc6 {[%clk 0:03:03.2]} 9. Qe2 {[%clk 0:02:49.6]} 9... cxd4
{[%clk 0:03:03.7]} 10. Rfd1 {[%clk 0:02:50.9]} 10... Nh5 {[%clk 0:01:45.9]} 11.
Be5 {[%clk 0:02:25]} 11... Nxe5 {[%clk 0:01:46.2]} 12. Nxe5 {[%clk 0:02:26.9]}
12... Nf6 {[%clk 0:01:47.6]} 13. exd4 {[%clk 0:02:26.8]} 13... Bb4 {[%clk
0:01:44]} 14. d5 {[%clk 0:02:24]} 14... Qe7 {[%clk 0:01:31.4]} 15. a3 {[%clk
0:01:57.6]} 15... Bd6 {[%clk 0:00:52.2]} 16. Re1 {[%clk 0:01:29.9]} 16... exd5
{[%clk 0:00:46.6]} 17. Nxd5 {[%clk 0:01:30.2]} 17... Nxd5 {[%clk 0:00:45.8]} 18.
Bxd5 {[%clk 0:01:32.1]} 18... Be6 {[%clk 0:00:20.5]} 19. Qf3 {[%clk 0:01:31.6]}
19... Bxd5 {[%clk 0:00:18.6]} 20. Qxd5 {[%clk 0:01:33.5]} 20... Bxe5 {[%clk
0:00:17.3]} 21. Rxe5 {[%clk 0:01:34]} 21... Qf6 {[%clk 0:00:18.6]} 22. Rae1
{[%clk 0:01:33.2]} 22... Rad8 {[%clk 0:00:16.2]} 23. Qxb7 {[%clk 0:01:24.8]}
23... Qxe5 {[%clk 0:00:15.9]} 0-1

[Event "*** Titled Tuesday Blitz"]
[Site "Chess.com"]
[Date "2019.06.04"]
[Round "6"]
[White "sergeikim"]
[Black "ristingho"]
[Result "1-0"]
[WhiteElo "2401"]
[BlackElo "2493"]
[TimeControl "180+2"]
[EndTime "14:17:01 PDT"]
[Termination "sergeikim won by resignation"]

1. d4 {[%clk 0:03:01.9]} 1... Nf6 {[%clk 0:02:56.6]} 2. c4 {[%clk 0:02:59]} 2...
c5 {[%clk 0:02:56]} 3. d5 {[%clk 0:02:59.5]} 3... b5 {[%clk 0:02:45.9]} 4. cxb5
{[%clk 0:03:00.3]} 4... a6 {[%clk 0:02:45.6]} 5. b6 {[%clk 0:03:01]} 5... e6
{[%clk 0:02:45.9]} 6. Nc3 {[%clk 0:03:01]} 6... Nxd5 {[%clk 0:02:44]} 7. Nxd5
{[%clk 0:03:01.8]} 7... exd5 {[%clk 0:02:45.9]} 8. Qxd5 {[%clk 0:03:02.6]} 8...
Nc6 {[%clk 0:02:44.7]} 9. e4 {[%clk 0:03:02.9]} 9... Be7 {[%clk 0:02:45.9]} 10.
Bc4 {[%clk 0:03:03.6]} 10... O-O {[%clk 0:02:47]} 11. Nf3 {[%clk 0:03:01.8]}
11... Qxb6 {[%clk 0:02:47]} 12. O-O {[%clk 0:02:59.9]} 12... d6 {[%clk 0:02:48]}
13. Qh5 {[%clk 0:02:59.6]} 13... Be6 {[%clk 0:02:43]} 14. Bd3 {[%clk 0:02:59.9]}
14... Ne5 {[%clk 0:02:22.9]} 15. Nxe5 {[%clk 0:02:55.8]} 15... dxe5 {[%clk
0:02:24.8]} 16. Qxe5 {[%clk 0:02:53.2]} 16... Bf6 {[%clk 0:02:25]} 17. Qh5
{[%clk 0:02:53.4]} 17... Rfd8 {[%clk 0:02:22.7]} 18. Bc2 {[%clk 0:02:35.6]}
18... g6 {[%clk 0:02:19.8]} 19. Qf3 {[%clk 0:02:33]} 19... Bd4 {[%clk
0:02:19.7]} 20. h4 {[%clk 0:02:22.8]} 20... h5 {[%clk 0:02:18.4]} 21. Qg3 {[%clk
0:02:20.5]} 21... Bc4 {[%clk 0:01:57.7]} 22. Re1 {[%clk 0:02:16.3]} 22... Qa5
{[%clk 0:01:54.5]} 23. Bg5 {[%clk 0:02:12]} 23... Re8 {[%clk 0:01:50.4]} 24. e5
{[%clk 0:02:04.1]} 24... Bxb2 {[%clk 0:01:28.2]} 25. Rad1 {[%clk 0:01:54.4]}
25... Qc3 {[%clk 0:01:05.1]} 26. Qf4 {[%clk 0:01:28.9]} 26... Rxe5 {[%clk
0:00:56.4]} 27. Rxe5 {[%clk 0:01:22]} 27... Qxe5 {[%clk 0:00:58.3]} 28. Qxc4
{[%clk 0:01:20.9]} 28... Re8 {[%clk 0:00:55.7]} 29. Bxg6 {[%clk 0:01:12.9]} 1-0

[Event "*** Titled Tuesday Blitz"]
[Site "Chess.com"]
[Date "2019.06.04"]
[Round "6"]
[White "SamCopeland"]
[Black "NM2019"]
[Result "1-0"]
[WhiteElo "2111"]
[BlackElo "2109"]
[TimeControl "180+2"]
[EndTime "14:17:04 PDT"]
[Termination "SamCopeland won by resignation"]

1. e4 {[%clk 0:03:01.9]} 1... c5 {[%clk 0:02:59.9]} 2. Nf3 {[%clk 0:03:01.3]}
2... d6 {[%clk 0:03:01.3]} 3. d4 {[%clk 0:03:01.7]} 3... cxd4 {[%clk 0:03:03]}
4. Nxd4 {[%clk 0:03:03.6]} 4... Nf6 {[%clk 0:03:04.6]} 5. Nc3 {[%clk 0:03:00.8]}
5... a6 {[%clk 0:03:06]} 6. Bg5 {[%clk 0:02:59.3]} 6... e5 {[%clk 0:03:07.3]} 7.
Nf5 {[%clk 0:02:50.1]} 7... Bxf5 {[%clk 0:03:07.8]} 8. Bxf6 {[%clk 0:02:48]}
8... Qxf6 {[%clk 0:03:04.2]} 9. Nd5 {[%clk 0:02:46.5]} 9... Qd8 {[%clk
0:03:03.7]} 10. exf5 {[%clk 0:02:46.4]} 10... Nd7 {[%clk 0:03:05.2]} 11. Bc4
{[%clk 0:02:23.9]} 11... Rc8 {[%clk 0:03:04.2]} 12. Bb3 {[%clk 0:02:18.3]} 12...
Nf6 {[%clk 0:03:02.9]} 13. Qf3 {[%clk 0:01:56.4]} 13... e4 {[%clk 0:03:00.2]}
14. Nxf6+ {[%clk 0:01:46.4]} 14... Qxf6 {[%clk 0:03:01.1]} 15. Qxe4+ {[%clk
0:01:46]} 15... Be7 {[%clk 0:03:02.7]} 16. Qxb7 {[%clk 0:01:28.8]} 16... Qe5+
{[%clk 0:03:01.3]} 17. Kf1 {[%clk 0:01:19.4]} 17... Qxf5 {[%clk 0:02:58.6]} 18.
Re1 {[%clk 0:01:13]} 18... Qb5+ {[%clk 0:02:59.4]} 19. Qxb5+ {[%clk 0:01:11.8]}
19... axb5 {[%clk 0:03:01]} 20. f3 {[%clk 0:00:59]} 20... f5 {[%clk 0:03:01.9]}
21. Re2 {[%clk 0:00:57.2]} 21... Kd8 {[%clk 0:02:57.9]} 22. Kf2 {[%clk
0:00:48.2]} 22... Bf6 {[%clk 0:02:57.3]} 23. c3 {[%clk 0:00:48.7]} 23... g5
{[%clk 0:02:48.8]} 24. Be6 {[%clk 0:00:35.5]} 24... Rc5 {[%clk 0:02:49.6]} 25.
Rd1 {[%clk 0:00:33.2]} 25... Kc7 {[%clk 0:02:46.5]} 26. Bb3 {[%clk 0:00:28.5]}
26... Be5 {[%clk 0:02:45.8]} 27. g3 {[%clk 0:00:26.1]} 27... f4 {[%clk
0:02:43.2]} 28. Rd5 {[%clk 0:00:18.3]} 28... Rxd5 {[%clk 0:02:39]} 29. Bxd5
{[%clk 0:00:20.2]} 29... Rf8 {[%clk 0:02:34.1]} 30. Be4 {[%clk 0:00:20.8]} 30...
h5 {[%clk 0:02:34.6]} 31. Rd2 {[%clk 0:00:16.6]} 31... g4 {[%clk 0:02:33.1]} 32.
Rd5 {[%clk 0:00:15.5]} 32... Kb6 {[%clk 0:02:30.3]} 33. gxf4 {[%clk 0:00:11.8]}
33... Bxf4 {[%clk 0:02:29.8]} 34. Rxh5 {[%clk 0:00:11.8]} 34... gxf3 {[%clk
0:02:27.7]} 35. Bxf3 {[%clk 0:00:13.7]} 35... Bc1 {[%clk 0:02:27]} 36. b3 {[%clk
0:00:14]} 36... Ra8 {[%clk 0:02:26.1]} 37. Bxa8 {[%clk 0:00:11.1]} 1-0

[Event "*** Titled Tuesday Blitz"]
[Site "Chess.com"]
[Date "2019.06.04"]
[Round "6"]
[White "FrenchMonster2002"]
[Black "Vamostodorecto"]
[Result "1-0"]
[WhiteElo "2367"]
[BlackElo "2414"]
[TimeControl "180+2"]
[EndTime "14:17:08 PDT"]
[Termination "FrenchMonster2002 won by resignation"]

1. e4 {[%clk 0:03:01.9]} 1... e5 {[%clk 0:02:56.2]} 2. Nf3 {[%clk 0:03:02.5]}
2... Nc6 {[%clk 0:02:57.4]} 3. d4 {[%clk 0:03:04.1]} 3... exd4 {[%clk 0:02:59]}
4. Nxd4 {[%clk 0:03:06]} 4... Nf6 {[%clk 0:02:59.4]} 5. Nxc6 {[%clk 0:03:06.9]}
5... bxc6 {[%clk 0:03:01.3]} 6. Qe2 {[%clk 0:03:07.9]} 6... Qe7 {[%clk
0:02:56.3]} 7. Nc3 {[%clk 0:03:07.4]} 7... d5 {[%clk 0:02:50.5]} 8. exd5 {[%clk
0:03:06.4]} 8... cxd5 {[%clk 0:02:52.2]} 9. Nb5 {[%clk 0:02:57.3]} 9... Ne4
{[%clk 0:02:34.9]} 10. f3 {[%clk 0:02:43.4]} 10... c6 {[%clk 0:02:09.6]} 11.
fxe4 {[%clk 0:02:37.8]} 11... cxb5 {[%clk 0:02:10.3]} 12. exd5 {[%clk
0:02:39.5]} 12... a6 {[%clk 0:01:58]} 13. Bg5 {[%clk 0:02:25.1]} 13... f6 {[%clk
0:01:52.8]} 14. Be3 {[%clk 0:02:22]} 14... Bb7 {[%clk 0:01:53.6]} 15. O-O-O
{[%clk 0:02:21.5]} 15... O-O-O {[%clk 0:01:53.8]} 16. Qg4+ {[%clk 0:01:40.7]}
16... Kb8 {[%clk 0:01:19.8]} 17. Bf4+ {[%clk 0:01:40.8]} 17... Ka8 {[%clk
0:01:20.9]} 18. d6 {[%clk 0:01:36.8]} 18... Qf7 {[%clk 0:01:17.7]} 19. Kb1
{[%clk 0:01:17]} 19... g5 {[%clk 0:01:17.5]} 20. Bg3 {[%clk 0:01:06.5]} 20... h5
{[%clk 0:01:17.1]} 21. Qd4 {[%clk 0:01:07.8]} 21... Bc6 {[%clk 0:00:57]} 22. Qb6
{[%clk 0:01:00.2]} 22... Qb7 {[%clk 0:00:50.8]} 23. Qxd8+ {[%clk 0:01:00.2]}
23... Qb8 {[%clk 0:00:48]} 24. Qxf6 {[%clk 0:00:51]} 24... Bh6 {[%clk
0:00:44.9]} 25. d7 {[%clk 0:00:47.8]} 1-0

[Event "*** Titled Tuesday Blitz"]
[Site "Chess.com"]
[Date "2019.06.04"]
[Round "6"]
[White "ozates"]
[Black "alturas_pacificas"]
[Result "1-0"]
[WhiteElo "2240"]
[BlackElo "2258"]
[TimeControl "180+2"]
[EndTime "14:17:29 PDT"]
[Termination "ozates won by resignation"]

1. e4 {[%clk 0:03:01.9]} 1... e5 {[%clk 0:02:55.2]} 2. Nf3 {[%clk 0:03:02.6]}
2... Nf6 {[%clk 0:02:55]} 3. Nxe5 {[%clk 0:03:01.8]} 3... d6 {[%clk 0:02:54.8]}
4. Nf3 {[%clk 0:03:02.8]} 4... Nxe4 {[%clk 0:02:54.3]} 5. Nc3 {[%clk 0:03:04.5]}
5... Nf6 {[%clk 0:02:54.9]} 6. d4 {[%clk 0:03:05.1]} 6... Bg4 {[%clk 0:02:55.4]}
7. Bf4 {[%clk 0:03:04.4]} 7... c6 {[%clk 0:02:54.1]} 8. Qd2 {[%clk 0:03:05]}
8... Be7 {[%clk 0:02:55.5]} 9. O-O-O {[%clk 0:03:05.8]} 9... O-O {[%clk
0:02:49.4]} 10. Bd3 {[%clk 0:03:06.5]} 10... Na6 {[%clk 0:02:44.9]} 11. a3
{[%clk 0:03:06]} 11... Nc7 {[%clk 0:02:46.3]} 12. Kb1 {[%clk 0:03:03.6]} 12...
Ncd5 {[%clk 0:02:44.8]} 13. Nxd5 {[%clk 0:03:02.7]} 13... Nxd5 {[%clk
0:02:46.7]} 14. Bg3 {[%clk 0:03:04.1]} 14... Bh5 {[%clk 0:02:31.4]} 15. c4
{[%clk 0:03:03]} 15... Nf6 {[%clk 0:02:29.1]} 16. Rhe1 {[%clk 0:03:03.5]} 16...
Bg6 {[%clk 0:02:30.4]} 17. Bxg6 {[%clk 0:03:03.6]} 17... hxg6 {[%clk 0:02:32.3]}
18. d5 {[%clk 0:02:46.2]} 18... cxd5 {[%clk 0:02:29.7]} 19. cxd5 {[%clk
0:02:46.2]} 19... Nh5 {[%clk 0:02:24.3]} 20. Nd4 {[%clk 0:02:34.4]} 20... Bf6
{[%clk 0:02:20.5]} 21. Nb5 {[%clk 0:02:26.5]} 21... Nxg3 {[%clk 0:02:21]} 22.
hxg3 {[%clk 0:02:26.5]} 22... a6 {[%clk 0:02:22.4]} 23. Nc3 {[%clk 0:02:27.3]}
23... Bxc3 {[%clk 0:02:19.4]} 24. Qxc3 {[%clk 0:02:27.3]} 24... Rc8 {[%clk
0:02:10.8]} 25. Qb3 {[%clk 0:02:27.9]} 25... b5 {[%clk 0:02:06.8]} 26. Rh1
{[%clk 0:02:27.6]} 26... Qf6 {[%clk 0:02:00.7]} 27. g4 {[%clk 0:02:16.7]} 27...
Rfe8 {[%clk 0:01:02.4]} 28. Qh3 {[%clk 0:02:08.3]} 28... Kf8 {[%clk 0:01:03.5]}
29. Rhe1 {[%clk 0:01:59.3]} 29... Kg8 {[%clk 0:00:52.8]} 30. Rh1 {[%clk
0:01:58.1]} 30... Kf8 {[%clk 0:00:53.6]} 31. Rde1 {[%clk 0:01:57.2]} 31... Rxe1+
{[%clk 0:00:35.7]} 32. Rxe1 {[%clk 0:01:55.5]} 32... Kg8 {[%clk 0:00:33.6]} 33.
Rh1 {[%clk 0:01:52.8]} 33... Kf8 {[%clk 0:00:34.3]} 34. Qh8+ {[%clk 0:01:50.6]}
34... Ke7 {[%clk 0:00:35.6]} 35. Qxc8 {[%clk 0:01:52.5]} 35... Qxf2 {[%clk
0:00:33.9]} 36. Qc2 {[%clk 0:01:51.2]} 36... Qd4 {[%clk 0:00:31]} 37. Re1+
{[%clk 0:01:49]} 37... Kd7 {[%clk 0:00:32.2]} 38. Qc6+ {[%clk 0:01:49.1]} 1-0

[Event "*** Titled Tuesday Blitz"]
[Site "Chess.com"]
[Date "2019.06.04"]
[Round "6"]
[White "jmduque"]
[Black "cool4chess"]
[Result "0-1"]
[WhiteElo "2371"]
[BlackElo "2354"]
[TimeControl "180+2"]
[EndTime "14:17:30 PDT"]
[Termination "cool4chess won by resignation"]

1. e4 {[%clk 0:02:59.8]} 1... c5 {[%clk 0:02:59.5]} 2. Nf3 {[%clk 0:03:00.6]}
2... Nc6 {[%clk 0:02:59.5]} 3. d4 {[%clk 0:03:00.4]} 3... cxd4 {[%clk
0:03:01.4]} 4. Nxd4 {[%clk 0:03:01.8]} 4... Nf6 {[%clk 0:03:03.1]} 5. Nc3 {[%clk
0:03:02.8]} 5... e5 {[%clk 0:03:04.7]} 6. Ndb5 {[%clk 0:03:03.5]} 6... d6 {[%clk
0:03:05.9]} 7. Bg5 {[%clk 0:03:03.9]} 7... a6 {[%clk 0:03:06.2]} 8. Na3 {[%clk
0:03:04.1]} 8... b5 {[%clk 0:03:07.2]} 9. Bxf6 {[%clk 0:03:05.3]} 9... gxf6
{[%clk 0:03:07.9]} 10. Nd5 {[%clk 0:03:06]} 10... f5 {[%clk 0:03:08.6]} 11. Bd3
{[%clk 0:03:04.2]} 11... Be6 {[%clk 0:03:09.4]} 12. c4 {[%clk 0:03:01.2]} 12...
Qa5+ {[%clk 0:02:54.3]} 13. Qd2 {[%clk 0:02:57.8]} 13... Qxd2+ {[%clk
0:02:55.2]} 14. Kxd2 {[%clk 0:02:58.5]} 14... Bh6+ {[%clk 0:02:56.8]} 15. Ke1
{[%clk 0:02:58.6]} 15... Bxd5 {[%clk 0:02:28.6]} 16. exd5 {[%clk 0:02:49]} 16...
Nd4 {[%clk 0:02:29.4]} 17. cxb5 {[%clk 0:02:49.6]} 17... e4 {[%clk 0:02:28.9]}
18. Bf1 {[%clk 0:02:40]} 18... axb5 {[%clk 0:02:26.3]} 19. Rd1 {[%clk
0:02:40.2]} 19... b4 {[%clk 0:02:25.1]} 20. Rxd4 {[%clk 0:02:39.7]} 20... bxa3
{[%clk 0:02:26.3]} 21. b3 {[%clk 0:02:38.2]} 21... Ke7 {[%clk 0:02:25]} 22. Bb5
{[%clk 0:02:33.9]} 22... Ra5 {[%clk 0:02:17.5]} 23. Bc6 {[%clk 0:02:27.5]} 23...
Rc5 {[%clk 0:02:18.6]} 24. Rc4 {[%clk 0:02:26.7]} 24... Rb8 {[%clk 0:01:57.5]}
25. Rxc5 {[%clk 0:02:20.5]} 25... dxc5 {[%clk 0:01:59.4]} 26. Kd1 {[%clk
0:02:09.4]} 26... c4 {[%clk 0:01:55.2]} 27. Kc2 {[%clk 0:02:08.2]} 27... cxb3+
{[%clk 0:01:56]} 28. axb3 {[%clk 0:02:08.7]} 28... Bg7 {[%clk 0:01:55.1]} 29.
Kb1 {[%clk 0:01:41.1]} 29... Rxb3+ {[%clk 0:01:55.6]} 30. Ka2 {[%clk 0:01:41.7]}
30... Rd3 {[%clk 0:01:57.2]} 31. Rb1 {[%clk 0:01:37]} 31... Bb2 {[%clk
0:01:57.8]} 32. Re1 {[%clk 0:01:25.7]} 32... Rd2 {[%clk 0:01:57.8]} 33. Kb3
{[%clk 0:01:05.8]} 33... Rxf2 {[%clk 0:01:54.2]} 34. g4 {[%clk 0:01:07]} 34...
a2 {[%clk 0:01:51.5]} 35. d6+ {[%clk 0:00:56.3]} 35... Kd8 {[%clk 0:01:42.8]}
0-1

[Event "*** Titled Tuesday Blitz"]
[Site "Chess.com"]
[Date "2019.06.04"]
[Round "6"]
[White "LazovT"]
[Black "Supernotar"]
[Result "1-0"]
[WhiteElo "2594"]
[BlackElo "2551"]
[TimeControl "180+2"]
[EndTime "14:17:38 PDT"]
[Termination "LazovT won by resignation"]

1. e4 {[%clk 0:02:57.8]} 1... c6 {[%clk 0:03:01]} 2. d4 {[%clk 0:02:57.4]} 2...
d5 {[%clk 0:03:02]} 3. e5 {[%clk 0:02:59]} 3... Bf5 {[%clk 0:03:02.7]} 4. h4
{[%clk 0:02:58.3]} 4... h5 {[%clk 0:03:00.9]} 5. c4 {[%clk 0:02:58.6]} 5... e6
{[%clk 0:02:59.7]} 6. Nc3 {[%clk 0:03:00.2]} 6... Nd7 {[%clk 0:02:53.6]} 7. cxd5
{[%clk 0:02:58.9]} 7... cxd5 {[%clk 0:02:53.6]} 8. Bd3 {[%clk 0:03:00.5]} 8...
Bxd3 {[%clk 0:02:47.6]} 9. Qxd3 {[%clk 0:03:02.4]} 9... Ne7 {[%clk 0:02:44.8]}
10. Nf3 {[%clk 0:03:04]} 10... Nf5 {[%clk 0:02:43.2]} 11. Bg5 {[%clk 0:03:02.9]}
11... Be7 {[%clk 0:02:18.1]} 12. O-O-O {[%clk 0:02:59.8]} 12... Rc8 {[%clk
0:02:11.7]} 13. Kb1 {[%clk 0:03:00]} 13... O-O {[%clk 0:02:06.7]} 14. Nxd5
{[%clk 0:02:38.9]} 14... Bxg5 {[%clk 0:01:45.7]} 15. Nxg5 {[%clk 0:02:07.5]}
15... Nb6 {[%clk 0:01:40.1]} 16. Ne3 {[%clk 0:02:06.2]} 16... g6 {[%clk
0:01:30.6]} 17. Nxf5 {[%clk 0:02:03.5]} 17... exf5 {[%clk 0:01:29.4]} 18. d5
{[%clk 0:02:04.6]} 18... Rc5 {[%clk 0:01:27.6]} 19. e6 {[%clk 0:01:54.2]} 19...
Rxd5 {[%clk 0:01:10.3]} 20. exf7+ {[%clk 0:01:49.6]} 20... Kg7 {[%clk
0:00:54.7]} 21. Qc3+ {[%clk 0:01:50.5]} 21... Kh6 {[%clk 0:00:55.6]} 22. Qc1
{[%clk 0:01:44.8]} 22... f4 {[%clk 0:00:48.7]} 23. Ne6 {[%clk 0:01:26.5]} 23...
Qd6 {[%clk 0:00:35.5]} 24. Nxf8 {[%clk 0:01:23]} 24... Qxf8 {[%clk 0:00:33.7]}
25. Qxf4+ {[%clk 0:01:23.1]} 25... Kg7 {[%clk 0:00:33.4]} 26. Rxd5 {[%clk
0:01:23.1]} 26... Nxd5 {[%clk 0:00:34.6]} 27. Qe5+ {[%clk 0:01:24.6]} 27... Nf6
{[%clk 0:00:35.3]} 28. Rc1 {[%clk 0:01:24.5]} 28... Qb4 {[%clk 0:00:24.6]} 29.
a3 {[%clk 0:01:18.2]} 29... Qf8 {[%clk 0:00:24.3]} 30. Rc7 {[%clk 0:01:15]}
30... b5 {[%clk 0:00:20.9]} 31. Rxa7 {[%clk 0:01:15.2]} 31... b4 {[%clk
0:00:21.4]} 32. axb4 {[%clk 0:01:15.8]} 32... Qxb4 {[%clk 0:00:21.2]} 33. f8=Q+
{[%clk 0:01:16.7]} 33... Kxf8 {[%clk 0:00:22.3]} 34. Qxf6+ {[%clk 0:01:17.6]}
1-0

[Event "*** Titled Tuesday Blitz"]
[Site "Chess.com"]
[Date "2019.06.04"]
[Round "6"]
[White "maxip32"]
[Black "Mikhail_Golubev"]
[Result "0-1"]
[WhiteElo "2425"]
[BlackElo "2479"]
[TimeControl "180+2"]
[EndTime "14:17:47 PDT"]
[Termination "Mikhail_Golubev won by resignation"]

1. e4 {[%clk 0:02:58.6]} 1... c5 {[%clk 0:02:59.9]} 2. Nf3 {[%clk 0:02:59.3]}
2... d6 {[%clk 0:03:00.6]} 3. d4 {[%clk 0:02:59.6]} 3... Nf6 {[%clk 0:03:01.3]}
4. Nc3 {[%clk 0:03:00.4]} 4... cxd4 {[%clk 0:03:01.2]} 5. Nxd4 {[%clk
0:03:02.3]} 5... g6 {[%clk 0:02:58.2]} 6. Be3 {[%clk 0:03:03.2]} 6... Bg7 {[%clk
0:02:58.8]} 7. f3 {[%clk 0:03:05.1]} 7... O-O {[%clk 0:02:58.9]} 8. Qd2 {[%clk
0:03:07]} 8... Nc6 {[%clk 0:02:59.5]} 9. g4 {[%clk 0:03:08.4]} 9... h5 {[%clk
0:02:55.5]} 10. g5 {[%clk 0:03:08.3]} 10... Nd7 {[%clk 0:02:51.7]} 11. h4 {[%clk
0:03:03.1]} 11... Nde5 {[%clk 0:02:50.4]} 12. Be2 {[%clk 0:03:01.5]} 12... Nxd4
{[%clk 0:02:32.8]} 13. Bxd4 {[%clk 0:02:59]} 13... Qa5 {[%clk 0:02:10.1]} 14.
O-O-O {[%clk 0:02:58.3]} 14... Be6 {[%clk 0:02:03.5]} 15. f4 {[%clk 0:02:59]}
15... Bxa2 {[%clk 0:01:51.6]} 16. fxe5 {[%clk 0:02:54.9]} 16... dxe5 {[%clk
0:01:52]} 17. Be3 {[%clk 0:02:49.3]} 17... e6 {[%clk 0:01:30.3]} 18. Nb5 {[%clk
0:02:35.9]} 18... Qa4 {[%clk 0:01:24.2]} 19. Nc3 {[%clk 0:02:25.6]} 19... Qa5
{[%clk 0:01:22.1]} 20. Qd6 {[%clk 0:02:23.3]} 20... Rfc8 {[%clk 0:01:11.9]} 21.
Nxa2 {[%clk 0:02:14.4]} 21... Qxa2 {[%clk 0:01:08.1]} 22. Qa3 {[%clk 0:02:15.2]}
22... Qxa3 {[%clk 0:01:04.5]} 23. bxa3 {[%clk 0:02:17.1]} 23... Bf8 {[%clk
0:01:02]} 24. Rd3 {[%clk 0:02:15.6]} 24... Rc4 {[%clk 0:01:01.2]} 25. Bf3 {[%clk
0:02:13.6]} 25... Rac8 {[%clk 0:01:00.8]} 26. Rh2 {[%clk 0:02:14.5]} 26... Rc3
{[%clk 0:01:01.6]} 27. Rxc3 {[%clk 0:02:08.6]} 27... Rxc3 {[%clk 0:01:02]} 28.
Kd2 {[%clk 0:02:09.4]} 28... Rxa3 {[%clk 0:01:01.5]} 29. Rh1 {[%clk 0:02:02]}
29... Bb4+ {[%clk 0:00:58.9]} 30. Ke2 {[%clk 0:02:03]} 30... Rc3 {[%clk
0:00:58.4]} 31. Rc1 {[%clk 0:01:37]} 31... Ba3 {[%clk 0:00:49.4]} 32. Bd2 {[%clk
0:01:37.8]} 32... Rc7 {[%clk 0:00:33.1]} 33. Ra1 {[%clk 0:01:37.4]} 33... Bc5
{[%clk 0:00:28]} 34. Bc3 {[%clk 0:01:34.3]} 34... Bb6 {[%clk 0:00:23.8]} 35. Kd3
{[%clk 0:01:33.8]} 35... Rxc3+ {[%clk 0:00:23.9]} 36. Kxc3 {[%clk 0:01:33.7]}
36... Bd4+ {[%clk 0:00:24.8]} 37. Kc4 {[%clk 0:01:34.2]} 37... Bxa1 {[%clk
0:00:25.3]} 38. Be2 {[%clk 0:01:35.7]} 38... Kf8 {[%clk 0:00:24.5]} 39. Kc5
{[%clk 0:01:36.2]} 39... Ke7 {[%clk 0:00:23.6]} 40. Bb5 {[%clk 0:01:35.5]} 40...
Bd4+ {[%clk 0:00:23.4]} 41. Kc4 {[%clk 0:01:36.7]} 41... a6 {[%clk 0:00:24.2]}
0-1

[Event "*** Titled Tuesday Blitz"]
[Site "Chess.com"]
[Date "2019.06.04"]
[Round "6"]
[White "OglazaOskar2005"]
[Black "Chempiblinka"]
[Result "1-0"]
[WhiteElo "2222"]
[BlackElo "2189"]
[TimeControl "180+2"]
[EndTime "14:17:51 PDT"]
[Termination "OglazaOskar2005 won by checkmate"]

1. e4 {[%clk 0:02:56.3]} 1... Nf6 {[%clk 0:03:01.1]} 2. e5 {[%clk 0:02:56.8]}
2... Nd5 {[%clk 0:03:02.2]} 3. d4 {[%clk 0:02:58.2]} 3... d6 {[%clk 0:03:03.3]}
4. c4 {[%clk 0:02:59.3]} 4... Nb6 {[%clk 0:03:04.3]} 5. f4 {[%clk 0:03:00.6]}
5... dxe5 {[%clk 0:03:04.7]} 6. fxe5 {[%clk 0:03:02.1]} 6... c5 {[%clk
0:03:05.9]} 7. d5 {[%clk 0:03:01.8]} 7... g6 {[%clk 0:03:06.6]} 8. Nf3 {[%clk
0:03:01.7]} 8... Bg4 {[%clk 0:03:06.3]} 9. Nc3 {[%clk 0:02:56.4]} 9... Bg7
{[%clk 0:03:06.9]} 10. Bf4 {[%clk 0:02:55.1]} 10... O-O {[%clk 0:03:06.1]} 11.
h3 {[%clk 0:02:54.7]} 11... Bxf3 {[%clk 0:03:06]} 12. Qxf3 {[%clk 0:02:54.6]}
12... e6 {[%clk 0:03:07.6]} 13. O-O-O {[%clk 0:02:54.2]} 13... N8d7 {[%clk
0:03:08.2]} 14. Qe3 {[%clk 0:02:50.5]} 14... Re8 {[%clk 0:02:58.7]} 15. d6
{[%clk 0:02:46.9]} 15... Nb8 {[%clk 0:02:41.2]} 16. h4 {[%clk 0:02:43.6]} 16...
Nc6 {[%clk 0:02:41.7]} 17. h5 {[%clk 0:02:37.4]} 17... Nd7 {[%clk 0:02:42.5]}
18. hxg6 {[%clk 0:02:35.9]} 18... fxg6 {[%clk 0:02:43.4]} 19. Qh3 {[%clk
0:02:33.6]} 19... h5 {[%clk 0:02:38]} 20. g4 {[%clk 0:02:34.6]} 20... g5 {[%clk
0:02:04.8]} 21. gxh5 {[%clk 0:02:17]} 21... gxf4 {[%clk 0:02:05.5]} 22. Rg1
{[%clk 0:02:10.3]} 22... Kh8 {[%clk 0:02:03.3]} 23. Qg4 {[%clk 0:02:07.1]} 23...
Bxe5 {[%clk 0:01:57.4]} 24. Bd3 {[%clk 0:02:02]} 24... Qf6 {[%clk 0:01:47.1]}
25. Ne4 {[%clk 0:01:57.2]} 25... Qh6 {[%clk 0:01:47.2]} 26. Ng5 {[%clk
0:01:54.7]} 26... f3 {[%clk 0:01:33.4]} 27. Kb1 {[%clk 0:01:51]} 27... Rf8
{[%clk 0:01:34.6]} 28. Nxf3 {[%clk 0:01:44.3]} 28... Rf4 {[%clk 0:01:29.9]} 29.
Qh3 {[%clk 0:01:41.3]} 29... Raf8 {[%clk 0:01:29.4]} 30. Rg6 {[%clk 0:01:39.2]}
30... Qh7 {[%clk 0:01:23.5]} 31. Ng5 {[%clk 0:01:39.8]} 31... Rf2 {[%clk
0:01:02.1]} 32. Nxh7 {[%clk 0:01:34.3]} 32... Rxb2+ {[%clk 0:01:02.9]} 33. Kc1
{[%clk 0:01:34.5]} 33... Nb4 {[%clk 0:01:03.9]} 34. Bb1 {[%clk 0:01:27.1]} 34...
Rff2 {[%clk 0:01:00.1]} 35. Rg8+ {[%clk 0:01:23.9]} 35... Kxg8 {[%clk
0:01:01.3]} 36. Qxe6+ {[%clk 0:01:25.5]} 36... Kh8 {[%clk 0:01:01.1]} 37. Qe8+
{[%clk 0:01:25.6]} 37... Kg7 {[%clk 0:00:59.3]} 38. Qxd7+ {[%clk 0:01:25.4]}
38... Kh8 {[%clk 0:00:50.4]} 39. Qe8+ {[%clk 0:01:23.2]} 39... Kg7 {[%clk
0:00:51.5]} 40. Qxe5+ {[%clk 0:01:23.8]} 40... Kh6 {[%clk 0:00:52.6]} 41. Qg5#
{[%clk 0:01:22.9]} 1-0